fUSD/lending_fUSD_20250503
["ID","MTS","AMOUNT","RATE_DAILY","PERIOD"]
[359683570,1746249047854,-977.01,0.00019848,2]
[359683571,1746249047864,-450.0,0.00019848,2]
[359683572,1746249047874,-450.0,0.00019848,2]
[359683573,1746249047884,-524.8,0.00019848,2]
[359683574,1746249047893,-471.32532163,0.00019848,2]
[359683575,1746249047903,-2975.0,0.00019848,2]
[359683576,1746249047911,-488.1697104,0.00019848,2]
[359683577,1746249047921,-647.64,0.00019848,2]
[359683578,1746249047933,-476.17,0.00019848,2]
[359683579,1746249047943,-450.0,0.00019848,2]
[359683580,1746249047952,-457.5,0.00019848,2]
[359683581,1746249047962,-601.02,0.00019848,2]
[359683582,1746249047972,-450.0,0.00019848,2]
[359683583,1746249047982,-1495.39,0.00019848,2]
[359683584,1746249047992,-477.38,0.00019848,2]
[359683585,1746249048002,-985.77,0.00019848,2]
[359683586,1746249048012,-450.0,0.00019848,2]
[359683587,1746249048023,-450.0,0.00019848,2]
[359683588,1746249048032,-568.95,0.00019848,2]
[359683589,1746249048042,-450.0,0.00019848,2]
[359683590,1746249048052,-450.0,0.00019848,2]
[359683591,1746249048061,-466.66,0.00019848,2]
[359683592,1746249048070,-450.0,0.00019848,2]
[359683593,1746249048081,-450.0,0.00019848,2]
[359683594,1746249048091,-450.0,0.00019848,2]
[359683595,1746249048100,-551.36,0.00019848,2]
[359683596,1746249048110,-450.0,0.00019848,2]
[359683597,1746249048119,-450.0,0.00019848,2]
[359683598,1746249048129,-354.35488265,0.00019848,2]
[359683599,1746249048138,-450.0,0.00019848,2]
[359683600,1746249048147,-835.69,0.00019848,2]
[359683601,1746249048157,-450.0,0.00019848,2]
[359683602,1746249048166,-450.0,0.00019848,2]
[359683603,1746249048175,-450.0,0.00019848,2]
[359683604,1746249048185,-692.95,0.00019848,2]
[359683605,1746249048194,-450.0,0.00019848,2]
[359683606,1746249048203,-560.08,0.00019848,2]
[359683607,1746249048213,-450.0,0.00019848,2]
[359683608,1746249048223,-450.0,0.00019848,2]
[359683609,1746249048233,-450.0,0.00019848,2]
[359683610,1746249048242,-3995.65,0.00019848,2]
[359683611,1746249048253,-450.0,0.00019848,2]
[359683612,1746249048262,-462.15,0.00019848,2]
[359683613,1746249048272,-456.56,0.00019848,2]
[359683614,1746249048282,-450.0,0.00019848,2]
[359683615,1746249048291,-450.0,0.00019848,2]
[359683616,1746249048301,-1555.07,0.00019848,2]
[359683617,1746249048310,-450.0,0.00019848,2]
[359683618,1746249048319,-4605.11,0.00019848,2]
[359683619,1746249048329,-1075.83,0.00019848,2]
[359683620,1746249048338,-450.0,0.00019848,2]
[359683621,1746249048348,-450.0,0.00019848,2]
[359683622,1746249048358,-150.0,0.00019849,2]
[359683623,1746249048367,-500.0,0.00019849,2]
[359683624,1746249048377,-500.0,0.00019849,2]
[359683625,1746249048386,-150.0,0.00019849,2]
[359683626,1746249048395,-500.0,0.00019849,2]
[359683627,1746249048406,-222.40857925,0.00019849,2]
[359683628,1746249048415,-500.0,0.00019849,2]
[359683629,1746249048425,-500.0,0.00019849,2]
[359683630,1746249048435,-150.0,0.00019849,2]
[359683631,1746249048444,-500.0,0.00019849,2]
[359683632,1746249048454,-450.0,0.00019849,2]
[359683633,1746249048464,-450.0,0.00019849,2]
[359683634,1746249048474,-450.0,0.00019849,2]
[359683635,1746249048483,-450.0,0.00019849,2]
[359683636,1746249048493,-450.0,0.00019849,2]
[359683637,1746249048502,-450.0,0.00019849,2]
[359683638,1746249048511,-450.0,0.00019849,2]
[359683639,1746249048521,-450.0,0.00019849,2]
[359683640,1746249048531,-450.0,0.00019849,2]
[359683641,1746249048540,-450.0,0.00019849,2]
[359683642,1746249048549,-450.0,0.00019849,2]
[359683643,1746249048559,-450.0,0.00019849,2]
[359683644,1746249048569,-450.0,0.00019849,2]
[359683645,1746249048579,-450.0,0.00019849,2]
[359683646,1746249048588,-462.88,0.00019849,2]
[359683647,1746249048598,-808.75,0.00019849,2]
[359683648,1746249048608,-450.0,0.00019849,2]
[359683649,1746249048618,-450.0,0.00019849,2]
[359683650,1746249048627,-450.0,0.00019849,2]
[359683651,1746249048636,-1076.72,0.00019849,2]
[359683652,1746249048646,-450.0,0.00019849,2]
[359683653,1746249048655,-450.0,0.00019849,2]
[359683654,1746249048665,-604.02,0.00019849,2]
[359683655,1746249048675,-300.0,0.00019849,2]
[359683656,1746249048685,-486.43,0.00019849,2]
[359683657,1746249048694,-450.0,0.00019849,2]
[359683658,1746249048704,-450.0,0.00019849,2]
[359683659,1746249048713,-473.26684363,0.00019849,2]
[359683660,1746249048723,-794.37,0.00019849,2]
[359683661,1746249048733,-450.0,0.00019849,2]
[359683662,1746249048742,-450.0,0.00019849,2]
[359683663,1746249048752,-450.0,0.00019849,2]
[359683664,1746249048761,-450.0,0.00019849,2]
[359683665,1746249048771,-454.53686391,0.00019849,2]
[359683666,1746249048781,-450.0,0.00019849,2]
[359683667,1746249048790,-450.0,0.00019849,2]
[359683668,1746249048800,-450.0,0.00019849,2]
[359683669,1746249048810,-460.4631633,0.00019849,2]
[359683670,1746249048820,-472.15560293,0.00019849,2]
[359683671,1746249048829,-499.31,0.00019849,2]
[359683672,1746249048839,-450.0,0.00019849,2]
[359683673,1746249048848,-450.0,0.00019849,2]
[359683674,1746249048858,-450.0,0.00019849,2]
[359683675,1746249048867,-450.0,0.00019849,2]
[359683676,1746249048877,-450.0,0.00019849,2]
[359683677,1746249048887,-450.0,0.00019849,2]
[359683678,1746249048897,-450.0,0.00019849,2]
[359683679,1746249048906,-450.0,0.00019849,2]
[359683680,1746249048915,-455.94,0.00019849,2]
[359683681,1746249048926,-1040.89,0.00019849,2]
[359683682,1746249048938,-450.0,0.00019849,2]
[359683683,1746249048948,-450.0,0.00019849,2]
[359683684,1746249048957,-450.96282215,0.00019849,2]
[359683685,1746249048967,-450.0,0.00019849,2]
[359683686,1746249048978,-1081.24,0.00019849,2]
[359683687,1746249048988,-515.53,0.00019849,2]
[359683688,1746249048998,-450.0,0.00019849,2]
[359683689,1746249049008,-450.0,0.00019849,2]
[359683690,1746249049018,-450.0,0.00019849,2]
[359683691,1746249049028,-450.0,0.00019849,2]
[359683692,1746249049037,-450.0,0.00019849,2]
[359683693,1746249049046,-450.0,0.00019849,2]
[359683694,1746249049056,-567.27,0.00019849,2]
[359683695,1746249049065,-450.0,0.00019849,2]
[359683696,1746249049075,-575.34,0.00019849,2]
[359683697,1746249049084,-545.5843728,0.00019849,2]
[359683698,1746249049093,-1437.18,0.00019849,2]
[359683699,1746249049103,-450.0,0.00019849,2]
[359683700,1746249049112,-712.59,0.00019849,2]
[359683701,1746249049121,-205.70456391,0.00019849,2]
[359683702,1746249049131,-464.14593802,0.00019849,2]
[359683703,1746249049141,-566.64,0.00019849,2]
[359683704,1746249049150,-503.9,0.00019849,2]
[359683705,1746249049159,-551.57,0.00019849,2]
[359683706,1746249049169,-450.0,0.00019849,2]
[359683707,1746249049178,-477.03160307,0.00019849,2]
[359683708,1746249049187,-450.0,0.00019849,2]
[359683709,1746249049197,-450.0,0.00019849,2]
[359683710,1746249049207,-450.0,0.00019849,2]
[359683711,1746249049216,-585.04,0.00019849,2]
[359683712,1746249049226,-545.69,0.00019849,2]
[359683713,1746249049235,-1260.74,0.00019849,2]
[359683714,1746249049244,-450.0,0.00019849,2]
[359683715,1746249049254,-585.16,0.00019849,2]
[359683716,1746249049264,-450.0,0.00019849,2]
[359683717,1746249049273,-450.0,0.00019849,2]
[359683718,1746249049283,-699.18,0.00019849,2]
[359683719,1746249049292,-755.25,0.00019849,2]
[359683720,1746249049301,-450.0,0.00019849,2]
[359683721,1746249049312,-752.0,0.00019849,2]
[359683722,1746249049322,-742.65,0.00019849,2]
[359683723,1746249049331,-450.0,0.00019849,2]
[359683724,1746249049340,-450.0,0.00019849,2]
[359683725,1746249049349,-486.75,0.00019849,2]
[359683726,1746249049359,-1168.72,0.00019849,2]
[359683727,1746249049368,-993.17,0.00019849,2]
[359683728,1746249049377,-450.0,0.00019849,2]
[359683729,1746249049387,-450.0,0.00019849,2]
[359683730,1746249049396,-1432.92,0.00019849,2]
[359683731,1746249049406,-497.75,0.00019849,2]
[359683732,1746249049416,-450.0,0.00019849,2]
[359683733,1746249049425,-450.0,0.00019849,2]
[359683734,1746249049441,-604.28,0.00019849,2]
[359683735,1746249049455,-450.0,0.00019849,2]
[359683736,1746249049465,-1648.11,0.00019849,2]
[359683737,1746249049475,-680.06,0.00019849,2]
[359683738,1746249049484,-450.0,0.00019849,2]
[359683739,1746249049495,-450.0,0.00019849,2]
[359683740,1746249049505,-450.0,0.00019849,2]
[359683741,1746249049515,-516.14,0.00019849,2]
[359683742,1746249049525,-632.47,0.00019849,2]
[359683743,1746249049535,-450.0,0.00019849,2]
[359683744,1746249049545,-4104.92,0.00019849,2]
[359683745,1746249049555,-2480.99,0.00019849,2]
[359683746,1746249049564,-450.0,0.00019849,2]
[359683747,1746249049574,-906.1,0.00019849,2]
[359683748,1746249049584,-463.62,0.00019849,2]
[359683749,1746249049594,-902.26,0.00019849,2]
[359683750,1746249049604,-4493.69,0.00019849,2]
[359683751,1746249049613,-977.42,0.00019849,2]
[359683752,1746249049623,-450.0,0.00019849,2]
[359683753,1746249049633,-450.0,0.00019849,2]
[359683754,1746249049643,-2238.11,0.00019849,2]
[359683755,1746249049652,-818.31,0.00019849,2]
[359683756,1746249049662,-4831.13,0.00019849,2]
[359683757,1746249049673,-450.0,0.00019849,2]
[359683758,1746249049683,-450.0,0.00019849,2]
[359683759,1746249049693,-558.66,0.00019849,2]
[359683760,1746249049703,-27671.24,0.00019849,2]
[359683761,1746249049713,-450.0,0.00019849,2]
[359683762,1746249049723,-450.0,0.00019849,2]
[359683763,1746249049733,-15516.38,0.00019849,2]
[359683764,1746249049742,-450.0,0.00019849,2]
[359683765,1746249049753,-745.52,0.00019849,2]
[359683766,1746249049762,-450.0,0.00019849,2]
[359683767,1746249049772,-712.48,0.00019849,2]
[359683768,1746249049782,-588.96,0.00019849,2]
[359683769,1746249049792,-330.48091671,0.0001985,2]
[359683770,1746249049802,-450.0,0.0001985,2]
[359683771,1746249049812,-3623.98954501,0.00019853,2]
[359683772,1746249049821,-395.97270757,0.00019853,2]
[359683773,1746249049831,-443.62,0.00019856,2]
[359683774,1746249049841,-500.0,0.00019856,2]
[359683775,1746249049857,-500.0,0.00019856,2]
[359683776,1746249049867,-500.0,0.00019856,2]
[359683777,1746249049876,-500.0,0.00019856,2]
[359683778,1746249049887,-12500.0,0.00019856,2]
[359683779,1746249049896,-12500.0,0.00019856,2]
[359683780,1746249049906,-12500.0,0.00019865,2]
[359683781,1746249049916,-12500.0,0.00019865,2]
[359683782,1746249049926,-166.2109942,0.00019865,2]
[359683783,1746249049936,-501.88937331,0.00019873,2]
[359683784,1746249049946,-402.99682489,0.00019873,2]
[359683785,1746249049955,-162.45076163,0.00019873,2]
[359683786,1746249049964,-500.0,0.00019873,2]
[359683787,1746249049974,-500.0,0.00019873,2]
[359683788,1746249049983,-500.0,0.00019873,2]
[359683789,1746249049992,-500.0,0.00019873,2]
[359683790,1746249050004,-513.96299407,0.00019873,2]
[359683791,1746249050013,-503.89540493,0.00019873,2]
[359683792,1746249050021,-12500.0,0.00019874,2]
[359683793,1746249050031,-12500.0,0.00019874,2]
[359683794,1746249050042,-330.48091671,0.00019875,2]
[359683795,1746249050051,-12500.0,0.00019882,2]
[359683796,1746249050061,-12500.0,0.00019882,2]
[359683797,1746249050073,-159.19879139,0.00019886,2]
[359683798,1746249050084,-1233.29204468,0.0001989,2]
[359683799,1746249050095,-159.19879139,0.00019891,2]
[359683800,1746249050106,-12500.0,0.00019891,2]
[359683801,1746249050115,-12500.0,0.00019891,2]
[359683802,1746249050126,-159.19879139,0.00019895,2]
[359683803,1746249050137,-12500.0,0.000199,2]
[359683804,1746249050148,-159.19879139,0.000199,2]
[359683805,1746249050158,-2780.94450003,0.000199,2]
[359683806,1746249050167,-12500.0,0.000199,2]
[359683807,1746249050177,-166.2109942,0.000199,2]
[359683808,1746249050186,-330.48091671,0.000199,2]
[359683809,1746249050197,-395.97270757,0.000199,2]
[359683810,1746249050206,-3623.98954501,0.000199,2]
[359683811,1746249050215,-180.84581838,0.000199,3]
[359683812,1746249050224,-11036.25197262,0.000199,2]
[359683813,1746249050233,-203.9699087,0.000199,2]
[359683814,1746249050242,-5152.27893101,0.000199,2]
[359683815,1746249050251,-634.35822519,0.000199,2]
[359683816,1746249050261,-2128.0,0.000199,2]
[359683817,1746249050270,-4093.995,0.00019907,2]
[359683818,1746249050278,-323.067,0.00019907,2]
[359683819,1746249050287,-500.0,0.00019918,2]
[359683820,1746249050297,-6757.669,0.00019948,2]
[359683821,1746249050307,-890.635,0.00019948,2]
[359683822,1746249050316,-878.0,0.00019948,2]
[359683823,1746249050325,-4008.0,0.00019948,2]
[359683824,1746249050335,-153.0,0.00019948,2]
[359683825,1746249050344,-24428.0,0.00019973,2]
[359683826,1746249050354,-500.0,0.00019973,2]
[359683827,1746249050363,-503.14930803,0.00019973,2]
[359683828,1746249050371,-500.0,0.00019973,2]
[359683829,1746249050380,-500.0,0.00019973,2]
[359683830,1746249050390,-501.21994559,0.00019973,2]
[359683831,1746249050399,-501.15741321,0.00019973,2]
[359683832,1746249050408,-160.45164529,0.00019973,2]
[359683833,1746249050417,-544.89074326,0.00019973,2]
[359683834,1746249050426,-500.0,0.00019973,2]
[359683835,1746249050435,-959.0,0.00019973,2]
[359683836,1746249050443,-312.01437503,0.00019973,2]
[359683837,1746249050452,-500.0,0.00019973,2]
[359683838,1746249050461,-500.0,0.00019973,2]
[359683839,1746249050471,-500.68219032,0.00019973,2]
[359683840,1746249050480,-500.0,0.00019973,2]
[359683841,1746249050488,-500.0,0.00019973,2]
[359683842,1746249050498,-500.0,0.00019973,2]
[359683843,1746249050507,-1000.0,0.00019985,2]
[359683844,1746249050518,-1000.0,0.00019985,2]
[359683845,1746249050530,-1000.0,0.00019985,2]
[359683846,1746249050543,-1000.0,0.00019985,2]
[359683847,1746249050557,-1000.0,0.00019985,2]
[359683848,1746249050570,-1026.39740553,0.00019985,2]
[359683849,1746249050583,-267887.1783837,0.00019986,2]
[359683850,1746249050593,-22259.5511967,0.00019986,2]
[359683851,1746249050603,-9715.0129861,0.00019986,2]
[359683852,1746249050614,-1233.29204468,0.0001999,2]
[359683853,1746249050626,-1233.29204468,0.0001999,2]
[359683854,1746249050639,-500.0,0.00019999,2]
[359683855,1746249050650,-500.0,0.00019999,2]
[359683856,1746249050661,-679.71892541,0.00019999,2]
[359683857,1746249050673,-500.0,0.00019999,2]
[359683858,1746249050685,-300.0,0.00019999,2]
[359683859,1746249050697,-330.07121084,0.00019999,2]
[359683860,1746249050710,-300.0,0.00019999,2]
[359683861,1746249050722,-300.0,0.00019999,2]
[359683862,1746249050733,-66823.38330018,0.00019999,2]
[359683863,1746249050745,-267.56632987,0.0002,2]
[359683864,1746249050755,-606115.05961028,0.0002,2]
[359683865,1746249050766,-3058617.34974709,0.0002,2]
[359683866,1746249051229,-3468.16771335,0.0002,2]
[359683867,1746249051706,-450.0,0.00019573,2]
[359683868,1746249051717,-450.0,0.00019847,2]
[359683869,1746249051729,-450.0,0.00019848,2]
[359683870,1746249051740,-298.881,0.00019948,2]
[359683871,1746249051750,-202660.03676449,0.0002,2]
[359683872,1746249068597,345.45,0.00017188,2]
[359683873,1746249068801,345.45,0.00019451,2]
[359683874,1746249250280,250.0,0.00019009,7]
[359683875,1746249321620,2536.79268157,0.00019474,2]
[359683876,1746249349406,254.4,0.00018909,2]
[359683877,1746249393767,1000.0,0.00018879,2]
[359683878,1746249456603,-168.32156732,0.00019521,2]
[359683879,1746249465458,356.37543684,0.00019474,2]
[359683882,1746249851689,320.73789321,0.00019473,2]
[359683883,1746249851914,2628.6802112,0.00019473,2]
[359683884,1746249893739,812.12,0.00032,60]
[359683885,1746249984433,200.0,0.00018771,2]
[359683887,1746250088459,173.050314,0.0003287,120]
[359683888,1746250092810,173.050314,0.0003287,119]
[359683889,1746250095576,173.050314,0.0003287,118]
[359683890,1746250098182,173.050314,0.0003287,117]
[359683891,1746250100751,173.050314,0.0003287,116]
[359683893,1746250103336,173.050314,0.0003287,115]
[359683894,1746250105903,173.050314,0.0003287,114]
[359683895,1746250108576,173.050314,0.0003287,113]
[359683896,1746250111134,173.050314,0.0003287,112]
[359683897,1746250114105,173.050314,0.0003287,111]
[359683899,1746250117422,173.050314,0.0003287,110]
[359683900,1746250121307,173.050314,0.0003287,109]
[359683902,1746250124111,173.050314,0.0003287,108]
[359683904,1746250126644,173.050314,0.0003287,107]
[359683906,1746250128198,2145.26,0.00018754,2]
[359683907,1746250129171,173.050314,0.0003287,106]
[359683908,1746250132011,173.050314,0.0003287,105]
[359683909,1746250134564,173.050314,0.0003287,104]
[359683910,1746250137453,173.050314,0.0003287,103]
[359683911,1746250140062,173.050314,0.0003287,102]
[359683912,1746250142789,173.050314,0.0003287,101]
[359683913,1746250145925,173.050314,0.0003287,100]
[359683914,1746250150390,173.050314,0.0003287,99]
[359683915,1746250152942,173.050314,0.0003287,98]
[359683916,1746250155473,173.050314,0.0003287,97]
[359683917,1746250157876,173.050314,0.0003287,96]
[359683918,1746250160450,173.050314,0.0003287,95]
[359683919,1746250163341,173.050314,0.0003287,94]
[359683920,1746250165992,173.050314,0.0003287,93]
[359683921,1746250167860,156.67,0.00019178,2]
[359683922,1746250168608,173.050314,0.0003287,92]
[359683923,1746250171207,173.050314,0.0003287,91]
[359683930,1746250174452,173.050314,0.0003287,90]
[359683931,1746250178044,173.050314,0.0003287,89]
[359683932,1746250180761,173.050314,0.0003287,88]
[359683933,1746250183723,173.050314,0.0003287,87]
[359683934,1746250186242,173.050314,0.0003287,86]
[359683935,1746250188709,173.050314,0.0003287,85]
[359683936,1746250191494,173.050314,0.0003287,84]
[359683937,1746250194207,173.050314,0.0003287,83]
[359683940,1746250196907,173.050314,0.0003287,82]
[359683941,1746250199634,173.050314,0.0003287,81]
[359683942,1746250204128,173.050314,0.0003287,80]
[359683943,1746250207943,173.050314,0.0003287,79]
[359683944,1746250210501,173.050314,0.0003287,78]
[359683945,1746250213021,173.050314,0.0003287,77]
[359683946,1746250215785,173.050314,0.0003287,76]
[359683947,1746250218360,173.050314,0.0003287,75]
[359683948,1746250221207,173.050314,0.0003287,74]
[359683949,1746250223661,173.050314,0.0003287,73]
[359683950,1746250226649,173.050314,0.0003287,72]
[359683951,1746250226999,300.0,0.00032876,60]
[359683952,1746250229270,173.050314,0.0003287,71]
[359683958,1746250232028,-1044.58820623,0.0001952,2]
[359683959,1746250232042,-1584.09200488,0.0001952,2]
[359683960,1746250232053,-250.0,0.00019521,2]
[359683961,1746250232063,-151.0,0.00019521,2]
[359683962,1746250232074,-868.97630702,0.0001956,2]
[359684000,1746250238136,288.66410388,0.00019473,2]
[359684013,1746250238576,173.050314,0.0003287,70]
[359684014,1746250240183,-331.02369298,0.0001956,2]
[359684015,1746250240193,-151.0,0.00019561,2]
[359684016,1746250240203,-151.0,0.00019561,2]
[359684017,1746250240213,-668.65185757,0.00019561,2]
[359684018,1746250240223,-207.4,0.00019561,2]
[359684019,1746250240232,-300.0,0.00019567,2]
[359684020,1746250240243,-2295.92314272,0.00019572,2]
[359684021,1746250240252,-752.296205,0.00019572,2]
[359684022,1746250240262,-549.086297,0.00019572,2]
[359684023,1746250240272,-450.0,0.00019572,2]
[359684024,1746250240282,-560.35,0.00019572,2]
[359684025,1746250240293,-528.12811078,0.00019572,2]
[359684026,1746250240303,-450.0,0.00019572,2]
[359684027,1746250240313,-450.0,0.00019572,2]
[359684028,1746250240323,-450.0,0.00019572,2]
[359684029,1746250240336,-450.0,0.00019572,2]
[359684030,1746250240346,-450.0,0.00019572,2]
[359684031,1746250240355,-450.0,0.00019572,2]
[359684032,1746250240364,-450.0,0.00019572,2]
[359684033,1746250240374,-450.0,0.00019572,2]
[359684034,1746250240383,-450.0,0.00019572,2]
[359684035,1746250240393,-450.0,0.00019572,2]
[359684036,1746250240402,-477.9,0.00019572,2]
[359684037,1746250240412,-450.0,0.00019572,2]
[359684038,1746250240421,-450.0,0.00019572,2]
[359684039,1746250240432,-1136.7,0.00019572,2]
[359684040,1746250240445,-450.0,0.00019572,2]
[359684041,1746250240455,-450.0,0.00019572,2]
[359684042,1746250240464,-395.39490778,0.00019572,2]
[359684043,1746250240474,-450.0,0.00019572,2]
[359684044,1746250240483,-450.0,0.00019572,2]
[359684045,1746250240493,-1225.07,0.00019572,2]
[359684046,1746250240502,-450.0,0.00019572,2]
[359684047,1746250240512,-450.0,0.00019572,2]
[359684048,1746250240522,-450.0,0.00019572,2]
[359684049,1746250240531,-500.59,0.00019572,2]
[359684050,1746250240540,-476.17,0.00019572,2]
[359684051,1746250240550,-450.0,0.00019572,2]
[359684052,1746250240560,-977.01,0.00019572,2]
[359684053,1746250240569,-4356.18,0.00019572,2]
[359684054,1746250240578,-985.77,0.00019572,2]
[359684055,1746250240587,-450.0,0.00019572,2]
[359684056,1746250240597,-1495.39,0.00019572,2]
[359684057,1746250240606,-525.43,0.00019572,2]
[359684058,1746250240615,-450.0,0.00019572,2]
[359684059,1746250240625,-450.0,0.00019572,2]
[359684060,1746250240634,-450.0,0.00019572,2]
[359684061,1746250240643,-450.0,0.00019572,2]
[359684062,1746250240653,-476.36,0.00019572,2]
[359684063,1746250240662,-1555.07,0.00019572,2]
[359684064,1746250240672,-450.0,0.00019572,2]
[359684065,1746250240681,-450.0,0.00019572,2]
[359684066,1746250240691,-450.0,0.00019572,2]
[359684067,1746250240700,-450.0,0.00019572,2]
[359684068,1746250240710,-456.56,0.00019572,2]
[359684069,1746250240719,-450.0,0.00019572,2]
[359684070,1746250240728,-450.0,0.00019572,2]
[359684071,1746250240738,-450.0,0.00019572,2]
[359684072,1746250240748,-450.0,0.00019572,2]
[359684073,1746250240757,-5344.84,0.00019572,2]
[359684074,1746250240767,-450.0,0.00019573,2]
[359684075,1746250240776,-500.0,0.00019573,2]
[359684076,1746250240786,-500.0,0.00019573,2]
[359684077,1746250240795,-500.0,0.00019573,2]
[359684078,1746250240805,-500.0,0.00019573,2]
[359684079,1746250240814,-216.98531292,0.00019573,2]
[359684080,1746250240823,-450.0,0.00019573,2]
[359684081,1746250240833,-450.0,0.00019573,2]
[359684082,1746250240842,-450.0,0.00019573,2]
[359684083,1746250240852,-450.0,0.00019573,2]
[359684084,1746250240861,-450.0,0.00019573,2]
[359684085,1746250240871,-450.0,0.00019573,2]
[359684086,1746250240881,-450.0,0.00019573,2]
[359684087,1746250240890,-450.0,0.00019573,2]
[359684088,1746250240900,-450.0,0.00019573,2]
[359684089,1746250240910,-450.0,0.00019573,2]
[359684090,1746250240920,-450.0,0.00019573,2]
[359684091,1746250240930,-450.0,0.00019573,2]
[359684092,1746250240939,-450.0,0.00019573,2]
[359684093,1746250240949,-450.0,0.00019573,2]
[359684094,1746250240958,-450.0,0.00019573,2]
[359684095,1746250240968,-450.0,0.00019573,2]
[359684096,1746250240978,-450.0,0.00019573,2]
[359684097,1746250240987,-450.0,0.00019573,2]
[359684098,1746250241000,-450.0,0.00019573,2]
[359684099,1746250241010,-450.0,0.00019573,2]
[359684100,1746250241019,-450.0,0.00019573,2]
[359684101,1746250241029,-450.0,0.00019573,2]
[359684102,1746250241039,-450.0,0.00019573,2]
[359684103,1746250241048,-450.0,0.00019573,2]
[359684104,1746250241058,-567.27,0.00019573,2]
[359684105,1746250241068,-1075.83,0.00019573,2]
[359684106,1746250241077,-450.0,0.00019573,2]
[359684107,1746250241087,-450.0,0.00019573,2]
[359684108,1746250241096,-450.0,0.00019573,2]
[359684109,1746250241106,-222.33032389,0.00019573,2]
[359684110,1746250241115,-450.0,0.00019573,2]
[359684111,1746250241125,-450.0,0.00019573,2]
[359684112,1746250241134,-450.0,0.00019573,2]
[359684113,1746250241144,-450.0,0.00019573,2]
[359684114,1746250241153,-380.49834359,0.00019573,2]
[359684115,1746250241163,-491.5,0.00019573,2]
[359684116,1746250241172,-450.0,0.00019573,2]
[359684117,1746250241182,-503.91,0.00019573,2]
[359684118,1746250241191,-414.13707132,0.00019573,2]
[359684119,1746250241201,-450.0,0.00019573,2]
[359684120,1746250241210,-450.0,0.00019573,2]
[359684121,1746250241219,-450.0,0.00019573,2]
[359684122,1746250241228,-575.34,0.00019573,2]
[359684123,1746250241238,-450.0,0.00019573,2]
[359684124,1746250241248,-1437.18,0.00019573,2]
[359684125,1746250241258,-450.0,0.00019573,2]
[359684126,1746250241267,-450.0,0.00019573,2]
[359684127,1746250241277,-450.0,0.00019573,2]
[359684128,1746250241286,-450.0,0.00019573,2]
[359684129,1746250241295,-566.64,0.00019573,2]
[359684130,1746250241304,-450.0,0.00019573,2]
[359684131,1746250241314,-450.0,0.00019573,2]
[359684132,1746250241323,-712.59,0.00019573,2]
[359684133,1746250241332,-450.0,0.00019573,2]
[359684134,1746250241342,-450.0,0.00019573,2]
[359684135,1746250241351,-450.0,0.00019573,2]
[359684136,1746250241360,-450.0,0.00019573,2]
[359684137,1746250241369,-450.0,0.00019573,2]
[359684138,1746250241379,-450.0,0.00019573,2]
[359684139,1746250241388,-561.14347333,0.00019573,2]